[Event "EIRCC 2019"]
[Site "Tallinn"]
[Date "2019.12.05"]
[Round "1.11"]
[White "Ponomarev, Vsevolod"]
[Black "Lysyj, Igor"]
[Result "0-1"]
[ECO "C47"]
[WhiteElo "1970"]
[BlackElo "2599"]
[Annotator "ChessBase"]
[PlyCount "82"]
[EventDate "2019.12.05"]
[EventType "swiss"]
[EventCountry "EST"]
[SourceTitle "playchess.com"]
[Source "ChessBase"]
[SourceQuality "1"]
[TimeControl "900+10"]

1. e4 {[%emt 0:00:00]} e5 {[%emt 0:00:00]} 2. Nf3 {[%emt 0:00:00]} Nc6 {[%emt 0:00:00]} 3. Nc3 {[%emt 0:00:00]} Nf6 {[%emt 0:00:00]} 4. d4 {[%emt 0:00:00]} exd4 {[%emt 0:00:00]} 5. Nxd4 {[%emt 0:00:00]} Bc5 {[%emt 0:00:00]} 6. Be3 {[%emt 0:00:00]} Bb6 {[%emt 0:00:02]} 7. Nf5 {[%emt 0:01:39]} O-O {[%emt 0:00:38]} 8. Bd3 {[%emt 0:00:27]} Ba5 {[%emt 0:03:26]} 9. O-O {[%emt 0:03:20]} Bxc3 {[%emt 0:01:00]} 10. bxc3 {[%emt 0:00:01]} d5 {[%emt 0:00:01]} 11. exd5 {[%emt 0:00:39]} Qxd5 {[%emt 0:00:04]} 12. c4 {[%emt 0:00:23]} Qa5 {[%emt 0:00:39]} 13. Bd2 {[%emt 0:02:27]} Qc5 {[%emt 0:00:47]} 14. Be3 {[%emt 0:00:09]} Qa5 {[%emt 0:01:44]} 15. Bd2 {[%emt 0:00:06]} Qa4 {[%emt 0:00:02]} 16. Bc3 {[%emt 0:00:25]} Bxf5 {[%emt 0:01:02]} 17. Bxf5 {[%emt 0:00:02]} Rad8 {[%emt 0:00:52]} 18. Qf3 {[%emt 0:01:04]} Nd4 {[%emt 0:00:02]} 19. Bxd4 {[%emt 0:00:01]} Rxd4 {[%emt 0:00:01]} 20. Qxb7 {[%emt 0:00:31]} Rxc4 {[%emt 0:00:02]} 21. Bd3 {[%emt 0:00:23]} Rc5 {[%emt 0:00:10]} 22. Rfe1 {[%emt 0:00:36]} g6 {[%emt 0:00:26]} 23. Re7 {[%emt 0:00:46]} Nd5 {[%emt 0:01:17]} 24. Re5 {[%emt 0:00:01]} Qa5 {[%emt 0:00:16]} 25. g3 {[%emt 0:01:18]} Nc3 {[%emt 0:00:52]} 26. Re7 {[%emt 0:00:22]} Nd5 {[%emt 0:00:29]} 27. Re5 {[%emt 0:00:26]} Nb4 {[%emt 0:00:58]} 28. Rxc5 {[%emt 0:02:40]} Qxc5 {[%emt 0:00:01]} 29. Qe4 {[%emt 0:00:02]} Rd8 {[%emt 0:00:43]} 30. Rd1 {[%emt 0:00:10]} Nxa2 {[%emt 0:00:33]} 31. Be2 {[%emt 0:01:34]} Rxd1+ {[%emt 0:00:07]} 32. Bxd1 {[%emt 0:00:01]} Nc3 {[%emt 0:00:19]} 33. Qe8+ {[%emt 0:00:21]} Kg7 {[%emt 0:00:07]} 34. Bf3 {[%emt 0:00:08]} a5 {[%emt 0:00:18]} 35. Bc6 {[%emt 0:00:04]} Nd1 {[%emt 0:00:26]} 36. Kg2 {[%emt 0:00:36]} Qxf2+ {[%emt 0:00:14]} 37. Kh3 {[%emt 0:00:01]} Qf5+ {[%emt 0:00:16]} 38. Kg2 {[%emt 0:00:04]} Qxc2+ {[%emt 0:00:16]} 39. Kh1 {[%emt 0:00:18]} Nf2+ {[%emt 0:00:12]} 40. Kg1 {[%emt 0:00:03]} Ng4 {[%emt 0:00:08]} 41. Bg2 {[%emt 0:00:12]} Qc5+ {[%emt 0:00:08]} 0-1

[Event "EIRCC 2019"]
[Site "Tallinn"]
[Date "2019.12.05"]
[Round "1.12"]
[White "Postny, Evgeny"]
[Black "Nazarova, Anastasia"]
[Result "1-0"]
[ECO "D30"]
[WhiteElo "2598"]
[BlackElo "1969"]
[Annotator "ChessBase"]
[PlyCount "99"]
[EventDate "2019.12.05"]
[EventType "swiss"]
[EventCountry "EST"]
[SourceTitle "playchess.com"]
[Source "ChessBase"]
[SourceQuality "1"]
[TimeControl "900+10"]

1. d4 {[%emt 0:00:00]} d5 {[%emt 0:00:00]} 2. c4 {[%emt 0:00:00]} e6 {[%emt 0:00:00]} 3. Nf3 {[%emt 0:00:03]} Nf6 {[%emt 0:00:00]} 4. Bg5 {[%emt 0:00:14]} Be7 {[%emt 0:00:16]} 5. Nc3 {[%emt 0:00:08]} Nbd7 {[%emt 0:00:56]} 6. e3 {[%emt 0:00:06]} h6 {[%emt 0:00:03]} 7. Bh4 {[%emt 0:00:12]} O-O {[%emt 0:00:45]} 8. Qc2 {[%emt 0:00:22]} c5 {[%emt 0:05:08]} 9. cxd5 {[%emt 0:00:28]} Nxd5 {[%emt 0:00:58]} 10. Bxe7 {[%emt 0:00:09]} Nxe7 {[%emt 0:00:26]} 11. Rd1 {[%emt 0:00:13]} Qa5 {[%emt 0:00:35]} 12. Be2 {[%emt 0:00:36]} cxd4 {[%emt 0:01:33]} 13. Nxd4 {[%emt 0:00:05]} Nf6 {[%emt 0:00:10]} 14. Bf3 {[%emt 0:00:44]} Rb8 {[%emt 0:00:37]} 15. Qa4 {[%emt 0:02:08]} Qxa4 {[%emt 0:01:16]} 16. Nxa4 {[%emt 0:00:03]} e5 {[%emt 0:00:10]} 17. Nb5 {[%emt 0:00:20]} Bd7 {[%emt 0:00:45]} 18. Nac3 {[%emt 0:00:03]} a6 {[%emt 0:00:14]} 19. Nd6 {[%emt 0:00:07]} Bc6 {[%emt 0:00:08]} 20. Bxc6 {[%emt 0:01:31]} Nxc6 {[%emt 0:00:02]} 21. Ke2 {[%emt 0:00:06]} g6 {[%emt 0:00:52]} 22. Nde4 {[%emt 0:02:46]} Nxe4 {[%emt 0:00:24]} 23. Nxe4 {[%emt 0:00:02]} Rfd8 {[%emt 0:00:20]} 24. Nc5 {[%emt 0:00:03]} Na5 {[%emt 0:01:04]} 25. Rxd8+ {[%emt 0:02:48]} Rxd8 {[%emt 0:00:02]} 26. Rc1 {[%emt 0:00:03]} b5 {[%emt 0:01:50]} 27. Nxa6 {[%emt 0:00:26]} Ra8 {[%emt 0:00:40]} 28. Nb4 {[%emt 0:00:06]} Nc4 {[%emt 0:00:06]} 29. b3 {[%emt 0:00:04]} Nd6 {[%emt 0:00:02]} 30. Rc5 {[%emt 0:00:52]} f6 {[%emt 0:00:18]} 31. Rc7 {[%emt 0:00:17]} Rd8 {[%emt 0:00:14]} 32. f3 {[%emt 0:00:37]} Nf7 {[%emt 0:00:10]} 33. Nc6 {[%emt 0:00:21]} Ra8 {[%emt 0:00:07]} 34. Rc8+ {[%emt 0:00:12]} Rxc8 {[%emt 0:00:04]} 35. Ne7+ {[%emt 0:00:02]} Kf8 {[%emt 0:00:12]} 36. Nxc8 {[%emt 0:00:02]} Ke8 {[%emt 0:00:02]} 37. Nb6 {[%emt 0:00:17]} Nd6 {[%emt 0:00:20]} 38. Nd5 {[%emt 0:00:12]} f5 {[%emt 0:00:10]} 39. Kd3 {[%emt 0:00:13]} Kd7 {[%emt 0:00:13]} 40. e4 {[%emt 0:00:11]} fxe4+ {[%emt 0:00:05]} 41. fxe4 {[%emt 0:00:02]} g5 {[%emt 0:00:14]} 42. a4 {[%emt 0:00:18]} bxa4 {[%emt 0:00:05]} 43. bxa4 {[%emt 0:00:02]} Kc6 {[%emt 0:00:11]} 44. Ne7+ {[%emt 0:01:39]} Kc5 {[%emt 0:00:05]} 45. Nf5 {[%emt 0:00:03]} Nf7 {[%emt 0:00:20]} 46. g4 {[%emt 0:00:03]} Kb4 {[%emt 0:00:08]} 47. a5 {[%emt 0:00:02]} Kxa5 {[%emt 0:00:07]} 48. Kc4 {[%emt 0:00:01]} Nh8 {[%emt 0:00:20]} 49. Kd5 {[%emt 0:00:13]} Ng6 {[%emt 0:00:04]} 50. Nxh6 {[%emt 0:00:06]} 1-0

[Event "EIRCC 2019"]
[Site "Tallinn"]
[Date "2019.12.05"]
[Round "1.13"]
[White "Fischer, Erik"]
[Black "Sanal, Vahap"]
[Result "0-1"]
[ECO "B00"]
[WhiteElo "1969"]
[BlackElo "2597"]
[Annotator "ChessBase"]
[PlyCount "84"]
[EventDate "2019.12.05"]
[EventType "swiss"]
[EventCountry "EST"]
[SourceTitle "playchess.com"]
[Source "ChessBase"]
[SourceQuality "1"]
[TimeControl "900+10"]

1. e4 {[%emt 0:00:00]} Nc6 {[%emt 0:00:00]} 2. Nf3 {[%emt 0:00:10]} d6 {[%emt 0:00:00]} 3. d4 {[%emt 0:00:02]} Nf6 {[%emt 0:00:01]} 4. Nc3 {[%emt 0:00:01]} g6 {[%emt 0:00:02]} 5. Be2 Bg7 6. O-O {[%emt 0:00:19]} O-O {[%emt 0:00:13]} 7. d5 {[%emt 0:00:09]} Nb8 {[%emt 0:00:01]} 8. Re1 {[%emt 0:01:45]} c6 {[%emt 0:00:03]} 9. a4 {[%emt 0:00:13]} Bg4 {[%emt 0:00:13]} 10. a5 {[%emt 0:00:45]} Qc7 {[%emt 0:00:19]} 11. Be3 {[%emt 0:00:18]} Nbd7 {[%emt 0:00:15]} 12. a6 {[%emt 0:01:51]} cxd5 {[%emt 0:00:21]} 13. axb7 {[%emt 0:00:48]} Qxb7 {[%emt 0:00:06]} 14. exd5 {[%emt 0:00:29]} Qxb2 {[%emt 0:01:35]} 15. Nb5 {[%emt 0:01:16]} Bxf3 {[%emt 0:00:14]} 16. gxf3 {[%emt 0:00:37]} Qe5 {[%emt 0:00:18]} 17. c4 {[%emt 0:00:32]} Nh5 {[%emt 0:00:19]} 18. Qd2 {[%emt 0:01:33]} Qf5 {[%emt 0:00:16]} 19. Nd4 {[%emt 0:00:43]} Qf6 {[%emt 0:00:24]} 20. Nc6 {[%emt 0:01:01]} h6 {[%emt 0:01:03]} 21. Bd4 {[%emt 0:00:46]} Ne5 {[%emt 0:00:12]} 22. Qe3 {[%emt 0:02:20]} Nf4 {[%emt 0:00:13]} 23. Bf1 {[%emt 0:00:34]} Qg5+ {[%emt 0:00:08]} 24. Kh1 {[%emt 0:00:01]} Nxc6 {[%emt 0:00:36]} 25. Bxg7 {[%emt 0:00:10]} Kxg7 {[%emt 0:00:02]} 26. dxc6 {[%emt 0:00:01]} Ne6 {[%emt 0:01:16]} 27. Ra3 {[%emt 0:00:53]} Rfc8 {[%emt 0:00:21]} 28. Qe4 {[%emt 0:00:57]} Rc7 {[%emt 0:00:10]} 29. Rea1 {[%emt 0:00:02]} Nc5 {[%emt 0:00:06]} 30. Qd4+ {[%emt 0:00:07]} Qf6 {[%emt 0:00:01]} 31. Qxf6+ {[%emt 0:00:01]} Kxf6 {[%emt 0:00:01]} 32. f4 {[%emt 0:00:11]} a5 {[%emt 0:00:02]} 33. Bg2 {[%emt 0:00:01]} a4 {[%emt 0:00:01]} 34. Rb1 {[%emt 0:00:17]} Rcc8 {[%emt 0:00:06]} 35. Ra2 {[%emt 0:00:33]} Rab8 {[%emt 0:00:03]} 36. Rab2 {[%emt 0:00:01]} Rxb2 {[%emt 0:00:01]} 37. Rxb2 {[%emt 0:00:01]} Rc7 {[%emt 0:00:10]} 38. Rb7 {[%emt 0:00:34]} Rxb7 {[%emt 0:00:04]} 39. cxb7 {[%emt 0:00:01]} Nxb7 {[%emt 0:00:02]} 40. Bxb7 {[%emt 0:00:01]} a3 {[%emt 0:00:01]} 41. c5 {[%emt 0:00:03]} a2 {[%emt 0:00:03]} 42. c6 {[%emt 0:00:01]} a1=Q+ {[%emt 0:00:03]} 0-1

[Event "EIRCC 2019"]
[Site "Tallinn"]
[Date "2019.12.05"]
[Round "1.14"]
[White "Riazantsev, Alexander"]
[Black "Ketlerius, Arijus"]
[Result "1-0"]
[ECO "A61"]
[WhiteElo "2594"]
[BlackElo "1969"]
[Annotator "ChessBase"]
[PlyCount "95"]
[EventDate "2019.12.05"]
[EventType "swiss"]
[EventCountry "EST"]
[SourceTitle "playchess.com"]
[Source "ChessBase"]
[SourceQuality "1"]
[TimeControl "900+10"]

1. d4 {[%emt 0:00:00]} Nf6 {[%emt 0:00:00]} 2. c4 {[%emt 0:00:00]} c5 {[%emt 0:00:00]} 3. d5 {[%emt 0:00:00]} e6 {[%emt 0:00:00]} 4. Nc3 {[%emt 0:00:00]} exd5 {[%emt 0:00:00]} 5. cxd5 {[%emt 0:00:00]} d6 {[%emt 0:00:00]} 6. Nf3 {[%emt 0:00:02]} g6 {[%emt 0:00:00]} 7. Bf4 {[%emt 0:00:01]} a6 {[%emt 0:00:00]} 8. a4 {[%emt 0:00:02]} Bg7 {[%emt 0:00:00]} 9. h3 {[%emt 0:00:04]} O-O {[%emt 0:00:00]} 10. e3 {[%emt 0:00:05]} Re8 {[%emt 0:00:00]} 11. Nd2 {[%emt 0:00:02]} Nbd7 {[%emt 0:00:01]} 12. Be2 {[%emt 0:00:10]} Ne5 {[%emt 0:00:13]} 13. O-O {[%emt 0:00:04]} Qc7 {[%emt 0:00:14]} 14. Re1 {[%emt 0:00:32]} Rb8 {[%emt 0:00:02]} 15. Bh2 {[%emt 0:00:15]} g5 {[%emt 0:00:13]} 16. Bxe5 {[%emt 0:01:51]} Rxe5 {[%emt 0:00:02]} 17. Nf3 {[%emt 0:00:01]} Re8 {[%emt 0:00:17]} 18. Nxg5 {[%emt 0:00:02]} h6 {[%emt 0:00:05]} 19. Nf3 {[%emt 0:00:05]} Ne4 {[%emt 0:00:01]} 20. Qc2 {[%emt 0:04:09]} Nxc3 {[%emt 0:00:11]} 21. bxc3 {[%emt 0:00:01]} b5 {[%emt 0:00:01]} 22. axb5 {[%emt 0:00:01]} axb5 {[%emt 0:00:01]} 23. Rab1 {[%emt 0:01:14]} Qa5 {[%emt 0:00:26]} 24. Rec1 {[%emt 0:00:17]} Bd7 {[%emt 0:00:21]} 25. Nd2 {[%emt 0:00:09]} Qd8 {[%emt 0:00:11]} 26. Bg4 {[%emt 0:00:58]} Bxg4 {[%emt 0:00:57]} 27. hxg4 {[%emt 0:00:01]} Qh4 {[%emt 0:00:02]} 28. Qd3 {[%emt 0:00:59]} Qxg4 {[%emt 0:01:59]} 29. Rxb5 {[%emt 0:00:17]} Rxb5 {[%emt 0:00:01]} 30. Qxb5 {[%emt 0:00:01]} Re5 {[%emt 0:00:01]} 31. c4 {[%emt 0:01:52]} Rg5 {[%emt 0:00:06]} 32. Qe8+ {[%emt 0:00:08]} Bf8 {[%emt 0:03:21]} 33. Qe4 {[%emt 0:00:04]} Qxe4 {[%emt 0:00:32]} 34. Nxe4 {[%emt 0:00:01]} Re5 {[%emt 0:00:01]} 35. Nd2 {[%emt 0:00:13]} Re8 {[%emt 0:00:08]} 36. g4 {[%emt 0:00:09]} Rb8 {[%emt 0:00:07]} 37. Rc2 {[%emt 0:00:25]} Rb4 {[%emt 0:00:15]} 38. Kg2 {[%emt 0:00:06]} Bg7 {[%emt 0:00:09]} 39. Ne4 {[%emt 0:00:01]} Bf8 {[%emt 0:00:03]} 40. Ng3 {[%emt 0:00:05]} Kg7 {[%emt 0:00:11]} 41. f4 {[%emt 0:00:07]} Kf6 {[%emt 0:00:03]} 42. Kf3 {[%emt 0:00:02]} Rb1 {[%emt 0:00:09]} 43. Ne4+ {[%emt 0:00:15]} Ke7 {[%emt 0:00:10]} 44. Ra2 {[%emt 0:00:10]} Rb7 {[%emt 0:00:09]} 45. Ra8 {[%emt 0:00:19]} Bg7 {[%emt 0:00:33]} 46. Ng3 {[%emt 0:00:02]} Rd7 {[%emt 0:00:20]} 47. Nf5+ {[%emt 0:00:05]} Kf6 {[%emt 0:00:01]} 48. Rg8 {[%emt 0:00:18]} 1-0

[Event "EIRCC 2019"]
[Site "Tallinn"]
[Date "2019.12.05"]
[Round "1.15"]
[White "Pogrebnojs, Dmitrijs"]
[Black "Esipenko, Andrey"]
[Result "0-1"]
[ECO "B12"]
[WhiteElo "1969"]
[BlackElo "2590"]
[Annotator "ChessBase"]
[PlyCount "52"]
[EventDate "2019.12.05"]
[EventType "swiss"]
[EventCountry "EST"]
[SourceTitle "playchess.com"]
[Source "ChessBase"]
[SourceQuality "1"]
[TimeControl "900+10"]

1. e4 {[%emt 0:00:00]} c6 {[%emt 0:00:00]} 2. d4 {[%emt 0:00:00]} d5 {[%emt 0:00:00]} 3. e5 {[%emt 0:00:28]} Bf5 {[%emt 0:00:05]} 4. Nf3 {[%emt 0:00:02]} e6 {[%emt 0:00:09]} 5. Be2 {[%emt 0:00:02]} Ne7 {[%emt 0:00:25]} 6. O-O {[%emt 0:00:02]} c5 {[%emt 0:00:13]} 7. c4 {[%emt 0:00:02]} Nbc6 {[%emt 0:00:06]} 8. dxc5 {[%emt 0:00:03]} d4 {[%emt 0:01:10]} 9. Bd3 {[%emt 0:01:29]} Bxd3 {[%emt 0:00:04]} 10. Qxd3 {[%emt 0:00:01]} Ng6 {[%emt 0:00:03]} 11. Qe4 {[%emt 0:00:50]} Bxc5 {[%emt 0:00:10]} 12. Bf4 {[%emt 0:01:14]} Qb6 {[%emt 0:03:25]} 13. Nbd2 {[%emt 0:02:19]} O-O {[%emt 0:00:34]} 14. b3 {[%emt 0:00:04]} Bb4 {[%emt 0:00:22]} 15. h4 {[%emt 0:00:40]} Bc3 {[%emt 0:00:35]} 16. h5 {[%emt 0:02:14]} Nxf4 {[%emt 0:00:44]} 17. Qxf4 {[%emt 0:00:01]} Bxa1 {[%emt 0:02:01]} 18. h6 {[%emt 0:02:05]} f5 {[%emt 0:00:23]} 19. hxg7 {[%emt 0:00:46]} Kxg7 {[%emt 0:00:18]} 20. Qg5+ {[%emt 0:02:37]} Kh8 {[%emt 0:00:09]} 21. Rxa1 {[%emt 0:00:23]} Qc7 {[%emt 0:00:29]} 22. g3 {[%emt 0:00:25]} Qg7 {[%emt 0:00:10]} 23. Kg2 {[%emt 0:00:32]} f4 {[%emt 0:01:26]} 24. Rh1 {[%emt 0:00:10]} fxg3 {[%emt 0:00:14]} 25. fxg3 {[%emt 0:00:17]} Rf5 {[%emt 0:00:05]} 26. Rxh7+ {[%emt 0:01:15]} Qxh7 {[%emt 0:00:19]} 0-1

[Event "EIRCC 2019"]
[Site "Tallinn"]
[Date "2019.12.05"]
[Round "1.16"]
[White "Yuffa, Daniil"]
[Black "George, Matthew P"]
[Result "1-0"]
[ECO "E09"]
[WhiteElo "2587"]
[BlackElo "1961"]
[Annotator "ChessBase"]
[PlyCount "73"]
[EventDate "2019.12.05"]
[EventType "swiss"]
[EventCountry "EST"]
[SourceTitle "playchess.com"]
[Source "ChessBase"]
[SourceQuality "1"]
[TimeControl "900+10"]

1. d4 {[%emt 0:00:00]} Nf6 {[%emt 0:00:00]} 2. c4 {[%emt 0:00:00]} e6 {[%emt 0:00:00]} 3. g3 {[%emt 0:00:00]} d5 {[%emt 0:00:13]} 4. Bg2 {[%emt 0:00:01]} Bb4+ {[%emt 0:00:13]} 5. Bd2 {[%emt 0:00:01]} Be7 {[%emt 0:00:03]} 6. Nf3 {[%emt 0:00:03]} O-O {[%emt 0:00:06]} 7. O-O {[%emt 0:00:03]} c6 {[%emt 0:00:16]} 8. Bf4 {[%emt 0:00:19]} Nh5 {[%emt 0:00:56]} 9. Bc1 {[%emt 0:00:16]} Nf6 {[%emt 0:00:14]} 10. Nbd2 {[%emt 0:00:05]} Nbd7 {[%emt 0:00:04]} 11. Qc2 {[%emt 0:00:30]} b6 {[%emt 0:00:33]} 12. e4 {[%emt 0:00:05]} a5 {[%emt 0:00:24]} 13. Re1 {[%emt 0:00:23]} Ba6 {[%emt 0:01:05]} 14. e5 {[%emt 0:00:32]} Ne8 {[%emt 0:00:02]} 15. b3 {[%emt 0:00:17]} b5 {[%emt 0:01:31]} 16. c5 {[%emt 0:00:09]} b4 {[%emt 0:00:22]} 17. Nf1 {[%emt 0:00:12]} Nc7 {[%emt 0:00:36]} 18. Ne3 {[%emt 0:00:16]} Nb5 {[%emt 0:00:45]} 19. Bb2 {[%emt 0:00:03]} Nc7 {[%emt 0:01:23]} 20. h4 {[%emt 0:00:39]} Re8 {[%emt 0:00:31]} 21. h5 {[%emt 0:00:18]} h6 {[%emt 0:00:03]} 22. Ng4 {[%emt 0:00:20]} Nf8 {[%emt 0:01:03]} 23. a3 {[%emt 0:00:13]} bxa3 {[%emt 0:00:28]} 24. Rxa3 {[%emt 0:00:06]} Nb5 {[%emt 0:00:12]} 25. Ra4 {[%emt 0:00:03]} Nh7 {[%emt 0:00:14]} 26. Rea1 {[%emt 0:00:23]} Bb7 {[%emt 0:00:21]} 27. Qd2 {[%emt 0:00:08]} Ng5 {[%emt 0:00:09]} 28. Nxg5 {[%emt 0:00:06]} Bxg5 {[%emt 0:00:01]} 29. f4 {[%emt 0:00:05]} Be7 {[%emt 0:00:06]} 30. Bf1 {[%emt 0:00:40]} Qc7 {[%emt 0:00:58]} 31. Bd3 {[%emt 0:00:10]} Ra7 {[%emt 0:00:16]} 32. Bc2 {[%emt 0:00:13]} f5 {[%emt 0:00:21]} 33. exf6 {[%emt 0:00:09]} Bxf6 {[%emt 0:00:03]} 34. Qd3 {[%emt 0:00:17]} Qf7 {[%emt 0:00:19]} 35. Qh7+ {[%emt 0:00:09]} Kf8 {[%emt 0:00:01]} 36. Bg6 {[%emt 0:00:03]} Qd7 {[%emt 0:00:20]} 37. Nxf6 {[%emt 0:00:05]} 1-0

[Event "EIRCC 2019"]
[Site "Tallinn"]
[Date "2019.12.05"]
[Round "1.17"]
[White "Nahkur, Madis"]
[Black "Popov, Valerij"]
[Result "0-1"]
[ECO "B23"]
[WhiteElo "1960"]
[BlackElo "2583"]
[Annotator "ChessBase"]
[PlyCount "72"]
[EventDate "2019.12.05"]
[EventType "swiss"]
[EventCountry "EST"]
[SourceTitle "playchess.com"]
[Source "ChessBase"]
[SourceQuality "1"]
[TimeControl "900+10"]

1. e4 {[%emt 0:00:00]} c5 {[%emt 0:00:00]} 2. Nc3 {[%emt 0:00:00]} d6 {[%emt 0:00:00]} 3. g3 {[%emt 0:00:01]} Nc6 {[%emt 0:00:05]} 4. Bg2 {[%emt 0:00:05]} g6 {[%emt 0:00:02]} 5. Nge2 {[%emt 0:00:04]} Bg7 {[%emt 0:00:06]} 6. O-O {[%emt 0:00:10]} Rb8 {[%emt 0:01:10]} 7. d3 {[%emt 0:00:53]} b5 {[%emt 0:00:08]} 8. a3 {[%emt 0:00:03]} e6 {[%emt 0:01:02]} 9. Rb1 {[%emt 0:00:08]} a5 {[%emt 0:01:24]} 10. a4 {[%emt 0:00:03]} bxa4 {[%emt 0:00:36]} 11. Nxa4 {[%emt 0:00:02]} Nge7 {[%emt 0:00:00]} 12. Be3 {[%emt 0:00:32]} Ba6 {[%emt 0:00:45]} 13. Qd2 {[%emt 0:00:29]} h5 {[%emt 0:00:43]} 14. h4 {[%emt 0:00:38]} Nd4 {[%emt 0:00:36]} 15. Nac3 {[%emt 0:02:03]} O-O {[%emt 0:00:52]} 16. Nd1 {[%emt 0:01:29]} Nxe2+ {[%emt 0:01:59]} 17. Qxe2 {[%emt 0:00:02]} Nc6 {[%emt 0:00:11]} 18. Qd2 {[%emt 0:01:11]} c4 {[%emt 0:00:43]} 19. dxc4 {[%emt 0:02:42]} Ne5 {[%emt 0:00:01]} 20. Re1 {[%emt 0:01:08]} Nxc4 21. Qc1 Nxe3 {[%emt 0:00:38]} 22. Nxe3 {[%emt 0:00:44]} Qb6 {[%emt 0:00:12]} 23. c3 {[%emt 0:01:56]} Bd3 {[%emt 0:00:22]} 24. Ra1 {[%emt 0:00:01]} Qxb2 {[%emt 0:00:08]} 25. Qxb2 {[%emt 0:00:08]} Rxb2 {[%emt 0:00:01]} 26. Red1 {[%emt 0:00:01]} Be2 {[%emt 0:00:01]} 27. Rxd6 {[%emt 0:00:12]} Bxc3 {[%emt 0:00:02]} 28. Nd1 {[%emt 0:00:03]} Bxd1 {[%emt 0:00:16]} 29. Raxd1 {[%emt 0:00:01]} Bb4 {[%emt 0:00:35]} 30. Rd8 {[%emt 0:01:16]} Rxd8 {[%emt 0:00:12]} 31. Rxd8+ {[%emt 0:00:01]} Kg7 {[%emt 0:00:01]} 32. f3 {[%emt 0:01:29]} a4 {[%emt 0:00:02]} 33. Ra8 {[%emt 0:00:00]} a3 {[%emt 0:00:01]} 34. Kh2 {[%emt 0:00:15]} a2 {[%emt 0:00:11]} 35. Kh3 {[%emt 0:00:35]} Bc3 {[%emt 0:00:01]} 36. Bf1 {[%emt 0:00:08]} Rd2 {[%emt 0:00:03]} 0-1

[Event "EIRCC 2019"]
[Site "Tallinn"]
[Date "2019.12.05"]
[Round "1.21"]
[White "Vitenberg, Noam Aviv"]
[Black "Stupak, Kirill"]
[Result "0-1"]
[ECO "E32"]
[WhiteElo "1954"]
[BlackElo "2552"]
[Annotator "ChessBase"]
[PlyCount "68"]
[EventDate "2019.12.05"]
[EventType "swiss"]
[EventCountry "EST"]
[SourceTitle "playchess.com"]
[Source "ChessBase"]
[SourceQuality "1"]
[TimeControl "900+10"]

1. d4 {[%emt 0:00:00]} Nf6 {[%emt 0:00:00]} 2. c4 {[%emt 0:00:04]} e6 {[%emt 0:00:06]} 3. Nc3 {[%emt 0:00:09]} Bb4 {[%emt 0:00:15]} 4. Qc2 {[%emt 0:00:09]} O-O {[%emt 0:00:04]} 5. Nf3 {[%emt 0:00:13]} d5 {[%emt 0:00:27]} 6. cxd5 {[%emt 0:00:17]} exd5 {[%emt 0:00:03]} 7. Bf4 {[%emt 0:00:15]} c5 {[%emt 0:00:33]} 8. dxc5 {[%emt 0:00:41]} Ne4 {[%emt 0:01:04]} 9. e3 {[%emt 0:00:12]} Qa5 {[%emt 0:00:42]} 10. Bd3 {[%emt 0:00:49]} Nd7 {[%emt 0:03:37]} 11. c6 {[%emt 0:04:12]} bxc6 {[%emt 0:00:23]} 12. O-O {[%emt 0:00:31]} Bxc3 {[%emt 0:00:38]} 13. bxc3 {[%emt 0:00:14]} Ndc5 {[%emt 0:00:04]} 14. Ne5 {[%emt 0:03:43]} Nxd3 {[%emt 0:02:02]} 15. Qxd3 {[%emt 0:03:31]} Ba6 {[%emt 0:00:01]} 16. c4 {[%emt 0:00:04]} Rac8 {[%emt 0:00:01]} 17. Qd4 {[%emt 0:01:29]} f6 {[%emt 0:00:40]} 18. Nd7 {[%emt 0:00:54]} Bxc4 {[%emt 0:03:23]} 19. Nxf8 {[%emt 0:00:27]} Bxf1 {[%emt 0:00:02]} 20. Nxh7 {[%emt 0:00:14]} Bc4 {[%emt 0:02:25]} 21. f3 c5 22. Qb2 {[%emt 0:00:03]} Qc3 {[%emt 0:00:45]} 23. Rb1 {[%emt 0:00:25]} Qxb2 {[%emt 0:00:10]} 24. Rxb2 {[%emt 0:00:01]} Nc3 {[%emt 0:00:05]} 25. Nxf6+ {[%emt 0:00:11]} gxf6 {[%emt 0:00:02]} 26. Rb7 {[%emt 0:00:02]} Ne2+ {[%emt 0:00:44]} 27. Kf2 {[%emt 0:00:00]} Nxf4 {[%emt 0:00:01]} 28. exf4 {[%emt 0:00:01]} a6 {[%emt 0:00:01]} 29. g4 {[%emt 0:00:36]} d4 {[%emt 0:00:06]} 30. a3 {[%emt 0:00:10]} Bf7 {[%emt 0:00:23]} 31. Rd7 {[%emt 0:00:10]} c4 {[%emt 0:00:09]} 32. Rxd4 {[%emt 0:00:01]} c3 {[%emt 0:00:01]} 33. Rd1 {[%emt 0:00:02]} c2 {[%emt 0:00:01]} 34. Rc1 {[%emt 0:00:01]} Bb3 {[%emt 0:00:01]} 0-1

[Event "EIRCC 2019"]
[Site "Tallinn"]
[Date "2019.12.05"]
[Round "1.22"]
[White "Ruck, Robert"]
[Black "Yurasova, Daria"]
[Result "1-0"]
[ECO "A07"]
[WhiteElo "2551"]
[BlackElo "1954"]
[Annotator "ChessBase"]
[PlyCount "75"]
[EventDate "2019.12.05"]
[EventType "swiss"]
[EventCountry "EST"]
[SourceTitle "playchess.com"]
[Source "ChessBase"]
[SourceQuality "1"]
[TimeControl "900+10"]

1. Nf3 {[%emt 0:00:01]} d5 {[%emt 0:00:00]} 2. g3 {[%emt 0:00:02]} c6 {[%emt 0:00:00]} 3. Bg2 {[%emt 0:00:02]} Bg4 {[%emt 0:00:04]} 4. O-O {[%emt 0:00:13]} Nf6 {[%emt 0:00:16]} 5. c4 {[%emt 0:00:05]} e6 {[%emt 0:00:05]} 6. Qb3 {[%emt 0:00:10]} Qb6 {[%emt 0:01:37]} 7. Qc2 {[%emt 0:00:23]} Nbd7 {[%emt 0:00:48]} 8. d3 {[%emt 0:00:28]} Be7 {[%emt 0:00:29]} 9. b3 {[%emt 0:01:00]} O-O {[%emt 0:00:31]} 10. Nc3 {[%emt 0:00:32]} Qc7 {[%emt 0:01:23]} 11. Rb1 {[%emt 0:00:36]} a5 {[%emt 0:00:32]} 12. Bd2 {[%emt 0:00:20]} Rfd8 {[%emt 0:02:33]} 13. Qb2 {[%emt 0:01:55]} Nf8 {[%emt 0:02:07]} 14. Rfc1 {[%emt 0:01:13]} d4 {[%emt 0:00:39]} 15. Na4 {[%emt 0:00:31]} e5 {[%emt 0:00:03]} 16. c5 {[%emt 0:01:16]} N6d7 {[%emt 0:00:14]} 17. Rc2 {[%emt 0:00:30]} Be6 {[%emt 0:00:15]} 18. Qc1 {[%emt 0:03:31]} Bd5 {[%emt 0:00:09]} 19. Qe1 {[%emt 0:00:03]} Ne6 {[%emt 0:00:21]} 20. Rbc1 {[%emt 0:00:02]} Bf6 {[%emt 0:01:37]} 21. Bh3 {[%emt 0:01:30]} Re8 {[%emt 0:01:14]} 22. Bf5 {[%emt 0:00:14]} g6 {[%emt 0:00:31]} 23. Be4 {[%emt 0:00:02]} Bg7 {[%emt 0:00:29]} 24. Bxd5 {[%emt 0:00:55]} cxd5 {[%emt 0:00:01]} 25. c6 {[%emt 0:00:01]} bxc6 {[%emt 0:00:42]} 26. Rxc6 {[%emt 0:00:03]} Qa7 {[%emt 0:00:27]} 27. Ng5 {[%emt 0:00:25]} Ndf8 {[%emt 0:00:55]} 28. Nxe6 {[%emt 0:00:16]} Nxe6 {[%emt 0:00:01]} 29. Nb6 {[%emt 0:00:13]} Rad8 {[%emt 0:00:27]} 30. Bxa5 {[%emt 0:00:03]} e4 {[%emt 0:00:24]} 31. Nc8 {[%emt 0:00:08]} Qd7 {[%emt 0:00:15]} 32. Bxd8 {[%emt 0:00:10]} Nxd8 {[%emt 0:00:02]} 33. Rd6 {[%emt 0:00:47]} Qb7 {[%emt 0:00:10]} 34. Qf1 {[%emt 0:00:15]} Bf8 {[%emt 0:00:13]} 35. Rb6 {[%emt 0:00:21]} Qd7 {[%emt 0:00:01]} 36. Rb8 {[%emt 0:00:09]} Nc6 {[%emt 0:00:08]} 37. Nb6 {[%emt 0:00:03]} Qe7 {[%emt 0:00:16]} 38. Nxd5 {[%emt 0:00:06]} 1-0